bitfinex/quotes_ETHUSD_20260109
["timestamp","ask_amount","ask_price","bid_price","bid_amount"]
[1767982541306,0.01930595,3101.0,3100.3,0.00081607]
[1767982542413,0.98920047,3100.9,3100.3,0.00081607]
[1767982542711,0.98920047,3100.9,3098.8,0.00080472]
[1767982542712,1.00850642,3100.4,3098.8,0.25380472]
[1767982543011,1.00850642,3100.4,3097.7,0.91102875]
[1767982543012,0.01930595,3099.0,3097.7,0.91102875]
[1767982543171,0.01930595,3098.6,3097.3,1.16402875]
[1767982543376,0.01930595,3098.5,3097.3,0.91102875]
[1767982543576,3.22675162,3099.1,3097.6,1.33704625]
[1767982543867,7.79555716,3100.2,3097.3,6.45723694]
[1767982543868,0.253,3099.4,3098.8,0.0008048]
[1767982544095,0.98920047,3100.2,3098.8,0.91183355]
[1767982544267,0.253,3099.8,3098.8,0.0008048]
[1767982544471,0.98920047,3099.8,3098.8,0.0008048]
[1767982544797,0.253,3099.7,3098.8,0.91183355]
[1767982544982,0.253,3099.7,3098.8,0.0008048]
[1767982544983,0.98920047,3099.7,3098.8,0.0008048]
[1767982545182,0.253,3099.8,3098.0,0.00080464]
[1767982545183,0.99000527,3099.2,3098.0,0.00080464]
[1767982545490,0.98920047,3099.0,3098.0,0.00080464]
[1767982545828,0.98920047,3098.9,3098.0,0.00080464]
[1767982545983,0.4469693,3099.0,3097.3,6.45723694]
[1767982545984,0.00080464,3098.4,3097.3,6.45723694]
[1767982546189,0.99000511,3098.4,3097.3,6.45723694]
[1767982546514,0.0008052,3098.2,3097.3,6.40804214]
[1767982546719,0.0008052,3098.2,3097.4,0.64088655]
[1767982547390,0.0008052,3098.2,3097.5,6.45682]
[1767982547893,0.0008052,3098.2,3097.5,7.36784875]
[1767982548118,0.0008052,3098.2,3097.5,9.68523]
[1767982548486,0.0008052,3098.2,3097.5,6.45682]
[1767982548711,0.0008052,3098.2,3097.6,0.70977066]
[1767982549527,0.92241708,3099.0,3098.0,0.00080472]
[1767982549890,0.253,3099.0,3098.8,0.002]
[1767982550432,0.92241708,3099.4,3098.0,0.00080472]
[1767982550433,0.92241708,3098.8,3098.0,0.00080472]
[1767982551207,0.253,3098.9,3098.0,0.00080472]
[1767982551897,4.40241159,3098.9,3098.0,0.00080472]
[1767982552123,0.76292789,3098.8,3098.0,0.00080472]
[1767982552295,0.92241708,3098.7,3098.0,0.00080472]
[1767982552698,0.92241708,3098.3,3097.8,0.00080528]
[1767982552898,1.17541708,3098.3,3097.8,0.00080528]
[1767982553127,0.00080472,3098.4,3097.8,0.00080528]
[1767982555612,1.15592856,3099.0,3097.8,0.00080528]
[1767982555811,1.15592856,3099.0,3098.0,0.0008048]
[1767982556132,0.0008048,3099.2,3098.0,0.9117938]
[1767982556732,0.92241708,3100.2,3098.8,0.00080488]
[1767982556948,0.254,3099.8,3098.8,0.00080488]
[1767982557102,0.92241708,3099.7,3098.8,0.00080488]
[1767982557509,0.92241708,3099.5,3098.8,0.00080488]
[1767982558239,6.45286184,3099.4,3098.8,0.00080488]
[1767982558402,0.73752789,3099.3,3098.8,0.00080488]
[1767982558706,0.254,3099.2,3098.8,0.00080488]
[1767982560246,0.92241708,3099.9,3098.8,0.00080488]
[1767982560544,0.254,3099.8,3098.8,0.00080488]
[1767982560741,0.44023646,3099.7,3098.8,0.00080488]
[1767982560941,7.37361376,3100.2,3098.8,0.00080488]
[1767982561152,0.254,3099.7,3098.8,0.00080488]
[1767982561313,0.92241708,3099.6,3098.8,0.00080488]
[1767982561644,0.92241708,3099.6,3098.0,0.0008048]
[1767982561645,0.92322196,3099.2,3098.0,0.0008048]
[1767982561956,0.001,3098.9,3098.0,0.0008048]
[1767982562471,3.22795149,3098.9,3098.0,0.0008048]
[1767982562676,3.22795149,3098.9,3098.0,0.9117938]
[1767982562677,0.001,3098.9,3098.0,0.9117938]
[1767982563320,0.001,3098.9,3098.0,0.0008048]
[1767982563321,0.92916106,3098.9,3098.0,0.0008048]
[1767982564034,0.254,3098.8,3098.0,0.0008048]
[1767982564240,0.254,3098.7,3098.0,0.0008048]
[1767982564440,0.254,3098.6,3098.0,0.0008048]
[1767982564853,1.18216106,3098.6,3098.0,0.0008048]
[1767982565068,0.92816106,3098.6,3098.0,0.0008048]
[1767982565218,0.254,3098.5,3098.0,0.0008048]
[1767982565418,0.25078,3098.5,3098.0,0.0008048]
[1767982566729,0.001,3098.9,3098.0,0.98107675]
[1767982566928,0.001,3098.9,3098.0,0.0008048]
[1767982567448,0.32379108,3098.9,3098.0,0.0008048]
[1767982567653,0.32379108,3098.9,3096.3,3.94546212]
[1767982567654,0.0008234,3097.6,3095.0,0.01930595]
[1767982567829,0.0008234,3097.6,3096.1,3.12414395]
[1767982567830,0.92816106,3097.1,3096.1,3.12414395]
[1767982568025,0.92816106,3097.1,3095.8,0.02010939]
[1767982568229,0.92816106,3097.1,3095.8,0.00080344]
[1767982568432,0.00080408,3097.2,3095.8,0.00080344]
[1767982568433,0.92816106,3096.9,3095.8,0.00080344]
[1767982568652,0.92816106,3096.7,3095.8,0.00080344]
[1767982568953,0.254,3096.6,3095.8,0.00080344]
[1767982569550,0.254,3096.5,3095.8,0.00080344]
[1767982570253,0.68614207,3096.4,3095.8,0.00080344]
[1767982570619,0.254,3096.3,3095.8,0.00080344]
[1767982572032,0.92816106,3096.7,3095.8,0.00080344]
[1767982572236,0.254,3096.3,3095.8,0.00080344]
[1767982572466,0.254,3096.3,3094.9,3.23187923]
[1767982572467,0.92816106,3096.0,3094.9,0.00080352]
[1767982572634,0.92816106,3095.8,3094.9,0.00080352]
[1767982572823,0.92816106,3095.2,3094.7,0.00080528]
[1767982573160,0.254,3095.1,3094.7,0.00080528]
[1767982573322,0.00080352,3095.3,3094.7,0.00080528]
[1767982573523,0.00080344,3096.2,3095.1,6.46182674]
[1767982573722,0.92816106,3096.1,3095.2,0.64618267]
[1767982573956,0.92816106,3096.1,3095.8,0.002]
[1767982574133,0.168,3095.2,3094.9,0.0008036]
[1767982574329,0.92816106,3095.6,3094.9,0.0008036]
[1767982574330,0.92816106,3096.5,3094.9,0.0008036]
[1767982574534,0.16667634,3096.6,3095.8,0.00080352]
[1767982574722,0.254,3096.4,3095.8,0.00080352]
[1767982574939,0.92816106,3096.3,3095.8,0.00080352]
[1767982575173,0.254,3096.2,3095.8,0.00080352]
[1767982576648,0.92816106,3096.1,3095.8,0.00080352]
[1767982577039,0.254,3096.2,3095.8,0.00080352]
[1767982577239,3.24826129,3097.0,3095.8,0.00080352]
[1767982577240,0.92816106,3097.0,3095.8,0.00080352]
[1767982577778,0.00080408,3097.2,3095.8,0.00080352]
[1767982578149,0.92816106,3097.1,3095.8,0.00080352]
[1767982578488,0.254,3097.1,3095.8,0.00080352]
[1767982579174,0.254,3097.1,3095.8,1.29304048]
[1767982580074,0.92816106,3097.0,3095.8,1.29304048]
[1767982580274,0.00080408,3097.2,3095.8,0.00080352]
[1767982581387,0.00080408,3097.2,3096.0,0.58679739]
[1767982581974,0.00080408,3097.2,3095.9,0.254]
[1767982582547,0.00080408,3097.2,3096.0,0.58679739]
[1767982582853,0.0008234,3097.6,3096.0,0.58679739]
[1767982582854,0.0008234,3097.6,3096.8,0.00080416]
[1767982583674,0.00080528,3098.2,3097.2,0.00082422]
[1767982584178,0.0008048,3098.4,3097.2,0.00082422]
[1767982584179,0.0008048,3098.4,3097.8,0.00080536]
[1767982585150,0.001,3098.6,3097.8,0.00080536]
[1767982585350,0.001,3098.6,3098.0,0.00080488]
[1767982588987,0.00080488,3099.2,3098.0,0.00080488]
[1767982589161,0.92896594,3099.2,3098.0,0.00080488]
[1767982589680,0.92896594,3099.2,3098.1,0.254]
[1767982591285,0.92896594,3099.2,3098.2,9.68304174]
[1767982591488,0.92896594,3099.2,3098.3,0.99370417]
[1767982591661,0.92896594,3099.2,3098.2,6.45536116]
[1767982592860,0.92896594,3099.2,3098.2,9.68304174]
[1767982593271,0.92896594,3099.2,3098.2,3.22768058]
[1767982593470,0.00080488,3099.2,3098.2,3.22768058]
[1767982593868,0.00080488,3099.2,3098.1,6.45556954]
[1767982594093,0.00080488,3099.2,3098.2,0.99381968]
[1767982594295,0.90886212,3099.2,3098.2,0.99381968]
[1767982594664,0.00080488,3099.2,3098.2,0.99381968]
[1767982595265,0.00080488,3099.2,3098.3,6.45515282]
[1767982595466,0.00080488,3099.2,3098.3,3.22757641]
[1767982595770,0.90886212,3099.2,3098.3,6.45515282]
[1767982595964,0.90886212,3099.2,3098.3,7.1260681]
[1767982596165,0.00080488,3099.2,3098.3,7.1260681]
[1767982596894,0.90886212,3099.2,3098.0,0.00080488]
[1767982597117,0.90805724,3099.0,3098.0,0.00080488]
[1767982597308,0.90805724,3098.8,3098.0,0.00080488]
[1767982599025,0.00080488,3099.2,3098.1,0.254]
[1767982599309,0.00080488,3099.2,3098.2,6.45536116]
[1767982599607,0.00080488,3099.2,3098.3,0.67093612]
[1767982601178,0.00080488,3099.2,3098.4,6.45494448]
[1767982602178,0.90886212,3099.2,3098.3,3.898501]
[1767982602480,0.90886212,3099.2,3098.1,3.2277232]
[1767982602873,0.90886212,3099.2,3098.2,3.22767128]
[1767982603109,0.90886212,3099.2,3098.0,0.00080488]
[1767982603403,3.91113537,3099.1,3098.0,0.00080488]
[1767982603612,3.22682475,3099.1,3098.0,0.00080488]
[1767982603809,0.90805724,3098.9,3098.0,0.00080488]
[1767982604010,0.90805724,3098.7,3098.0,0.00080488]
[1767982605399,4.13523157,3098.7,3098.0,0.00080488]
[1767982605616,0.90805724,3098.7,3098.0,0.00080488]
[1767982606423,0.90805724,3099.1,3098.0,0.00080488]
[1767982606732,0.68612171,3099.0,3098.0,0.00080488]
[1767982607035,0.00080488,3099.2,3098.0,0.00080488]
[1767982607236,0.00080488,3099.2,3098.1,0.254]
[1767982607533,0.00080488,3099.2,3098.2,6.45536116]
[1767982607731,0.00080488,3099.2,3098.3,0.67093612]
[1767982607935,0.90886212,3099.2,3098.2,3.22768058]
[1767982608142,0.90805724,3099.0,3098.2,3.22768058]
[1767982608439,0.68678517,3098.9,3098.2,3.22768058]
[1767982609515,0.68678517,3098.9,3098.0,6.45651489]
[1767982609715,0.68678517,3098.8,3098.1,0.67105149]
[1767982609914,0.00080488,3099.2,3098.1,1.25684888]
[1767982610115,0.00080488,3099.2,3098.2,0.58579739]
[1767982611441,0.00080488,3099.2,3098.5,10.26790163]
[1767982611620,0.00080488,3099.2,3098.6,1.28079016]
[1767982611816,0.00080488,3099.2,3098.6,1.2785685]
[1767982612318,0.00080488,3099.2,3098.7,0.254]
[1767982613621,0.00080488,3099.2,3098.8,6.45411126]
[1767982614641,0.00080488,3099.2,3098.3,0.002]
[1767982614840,0.99903637,3099.2,3098.4,3.22740046]
[1767982615229,0.99903637,3099.2,3098.3,0.002]
[1767982615731,0.99823149,3098.8,3098.0,0.00280488]
[1767982615935,0.99823149,3098.4,3097.2,0.00082422]
[1767982616113,0.99823149,3098.0,3097.2,0.00082422]
[1767982616311,1.01753744,3097.9,3097.2,0.00082422]
[1767982616847,0.99823149,3097.9,3097.2,0.00082422]
[1767982617029,1.25223149,3097.9,3097.2,0.00082422]
[1767982617535,0.99823149,3097.9,3097.2,0.00082422]
[1767982617844,0.99823149,3097.9,3097.3,0.32296276]
[1767982618049,0.99823149,3097.9,3097.2,3.22953192]
[1767982618259,0.99823149,3097.9,3097.3,3.22861163]
[1767982618552,0.00080536,3098.2,3097.3,3.22861163]
[1767982618710,0.00080536,3098.2,3097.3,6.4572301]
[1767982619945,0.00080536,3098.2,3097.2,0.00082422]
[1767982620116,0.99903685,3098.2,3097.2,0.00082422]
[1767982620948,0.00080536,3098.2,3097.2,0.00082422]
[1767982621246,0.00080488,3098.4,3097.2,0.58662161]
[1767982622638,0.99823149,3099.9,3098.8,0.00080496]
[1767982624031,0.97612054,3099.8,3098.8,0.00080496]
[1767982625352,0.001,3098.9,3098.8,0.00080496]
[1767982625554,0.97612054,3099.8,3098.8,0.00080496]
[1767982626057,0.97612054,3099.6,3098.8,0.00080496]
[1767982626234,0.9769255,3099.2,3098.3,6.45515282]
[1767982626424,0.00080496,3099.2,3098.3,6.45515282]
[1767982628553,0.9769255,3099.2,3098.1,3.48174649]
[1767982628756,0.9769255,3099.2,3098.1,3.22773058]
[1767982629058,0.9769255,3099.2,3098.2,3.22765653]
[1767982629353,0.97612054,3099.0,3098.0,0.00080496]
[1767982630022,0.97612054,3098.8,3098.0,0.00080496]
[1767982630221,0.97612054,3098.5,3098.0,0.00080496]
[1767982630469,0.97612054,3098.9,3098.0,0.00080496]
[1767982630626,0.97612054,3098.8,3098.0,0.00080496]
[1767982631192,4.20358279,3099.2,3098.0,0.00080496]
[1767982631328,0.74301635,3099.1,3098.0,0.00080496]
[1767982631732,0.9769255,3099.2,3098.0,0.00080496]
[1767982632349,0.97612054,3099.1,3098.0,0.25480496]
[1767982632657,0.97612054,3099.1,3098.0,0.00080496]
[1767982632855,0.99542649,3098.9,3098.0,0.00080496]
[1767982633957,0.97612054,3098.7,3098.0,0.00080496]
[1767982634129,0.97612054,3098.5,3098.0,0.00080496]
[1767982634850,4.20354486,3098.5,3098.0,0.00080496]
[1767982635059,0.97612054,3098.4,3098.0,0.00080496]
[1767982635368,0.97612054,3098.4,3097.8,0.00080544]
[1767982635369,0.9769255,3098.4,3097.8,0.00080544]
[1767982635675,1.39655552,3098.3,3097.8,0.00080544]
[1767982636072,0.97612054,3098.2,3097.8,0.00080544]
[1767982637672,0.97612054,3098.2,3098.0,0.002]
[1767982638701,0.97612054,3098.2,3097.8,0.00080544]
[1767982639273,0.97612054,3098.1,3097.8,0.00080544]
[1767982639477,0.97612054,3097.9,3097.8,0.00080544]
[1767982639654,0.97612054,3097.9,3097.5,0.002]
[1767982641476,0.00080544,3098.2,3097.5,0.002]
[1767982641674,0.97692598,3098.2,3097.5,0.002]
[1767982642478,0.97612054,3098.1,3097.5,0.002]
[1767982642678,0.97612054,3097.9,3097.5,0.002]
[1767982643565,4.2041488,3097.9,3097.5,0.002]
[1767982643770,0.97612054,3097.8,3097.5,0.002]
[1767982643970,0.97612054,3097.8,3097.2,0.00082422]
[1767982644267,0.99542649,3097.8,3097.2,0.00082422]
[1767982644460,0.97612054,3097.6,3097.2,0.00082422]
[1767982644651,0.97612054,3097.6,3096.8,0.00080416]
[1767982644652,0.97612054,3097.4,3096.8,0.00080416]
[1767982644857,0.97612054,3097.2,3096.8,0.00080416]
[1767982645057,0.97612054,3097.2,3096.7,0.002]
[1767982645058,0.9769247,3097.2,3096.3,3.22961267]
[1767982645289,0.9769247,3097.2,3096.4,3.22954177]
[1767982645492,0.9769247,3097.2,3096.2,0.002]
[1767982645989,0.97612054,3097.0,3096.2,0.002]
[1767982647189,0.97612054,3096.9,3096.2,0.002]
[1767982647580,0.99542649,3096.9,3096.2,0.002]
[1767982647782,0.97612054,3096.9,3096.2,0.002]
[1767982648675,0.97412054,3096.9,3096.2,0.002]
[1767982648874,0.97412054,3096.9,3096.2,0.256]
[1767982649397,0.00080416,3097.2,3096.2,0.256]
[1767982650098,3.24741878,3097.8,3096.2,0.256]
[1767982650099,0.97612054,3097.5,3096.8,0.00080424]
[1767982650504,1.30090709,3098.0,3096.8,0.00080424]
[1767982650869,0.97612054,3098.0,3096.8,0.00080424]
[1767982651091,0.97612054,3097.8,3096.8,0.00080424]
[1767982651295,0.01930595,3097.9,3096.8,0.00080424]
[1767982651296,0.99542649,3097.5,3096.8,0.00080424]
[1767982651503,0.99542649,3096.9,3096.2,0.002]
[1767982651672,0.99542649,3096.7,3096.2,0.002]
[1767982652179,4.47869716,3096.7,3096.2,0.002]
[1767982652375,5.25140376,3096.7,3096.2,0.002]
[1767982653097,0.95661984,3096.6,3096.3,0.002]
[1767982653303,0.95661984,3096.4,3095.9,0.002]
[1767982653471,0.01930595,3096.3,3095.9,0.002]
[1767982654068,0.95661984,3096.4,3095.9,0.002]
[1767982654971,4.18618937,3096.4,3095.9,0.002]
[1767982655196,4.92967507,3096.4,3095.9,0.002]
[1767982655503,1.70010554,3096.4,3095.9,0.002]
[1767982655699,0.95661984,3096.4,3095.9,0.002]
[1767982656118,4.18618673,3096.4,3095.9,0.002]
[1767982656298,0.95661984,3096.4,3095.9,0.002]
[1767982656973,4.18618824,3096.4,3095.9,0.002]
[1767982657673,0.95661984,3096.4,3095.9,0.002]
[1767982658305,1.37715331,3096.4,3095.9,0.002]
[1767982658508,0.95661984,3096.3,3095.9,0.002]
[1767982658752,0.95661984,3096.1,3095.9,0.002]
[1767982658887,0.97592579,3096.1,3095.8,0.00080352]
[1767982659186,0.95661984,3096.1,3095.0,6.46403554]
[1767982659385,0.95661984,3096.1,3095.1,0.64648391]
[1767982660181,0.00080352,3096.2,3095.3,0.59983993]
[1767982660406,3.22955933,3097.2,3095.8,0.0008036]
[1767982660703,0.97592579,3096.7,3095.8,0.0008036]
[1767982660879,0.95661984,3096.7,3095.8,0.0008036]
[1767982661084,0.254,3096.7,3095.8,0.0008036]
[1767982661300,0.95661984,3097.1,3095.8,0.0008036]
[1767982661690,0.97592579,3097.1,3095.8,0.0008036]
[1767982662291,4.2047528,3097.1,3095.8,0.0008036]
[1767982662521,0.97592579,3097.1,3095.9,0.96916651]
[1767982662819,0.95661984,3097.0,3095.9,0.96916651]
[1767982663036,1.21142408,3097.2,3095.9,0.96916651]
[1767982663319,0.68507914,3097.1,3095.9,0.96916651]
[1767982663523,0.00080424,3097.2,3096.0,0.76793993]
[1767982663722,0.00080424,3097.2,3096.1,0.94165057]
[1767982664396,0.00080424,3097.2,3096.2,9.68929653]
[1767982665319,0.001,3096.8,3096.2,9.68929653]
[1767982665621,0.95661984,3097.6,3096.8,0.00080432]
[1767982665831,4.18444225,3098.1,3096.8,0.00080432]
[1767982666016,0.6862686,3098.0,3096.8,0.00080432]
[1767982666526,0.00080544,3098.2,3096.8,13.68530325]
[1767982666827,0.00080544,3098.2,3096.9,2.12625423]
[1767982666828,0.95661984,3098.1,3096.9,2.12625423]
[1767982668024,0.00080544,3098.2,3096.9,2.12625423]
[1767982668229,0.00080544,3098.2,3096.9,2.89419416]
[1767982668726,0.00080496,3098.4,3097.1,0.76793993]
[1767982668958,0.00080496,3098.4,3097.8,0.00080552]
[1767982670426,0.001,3098.9,3097.8,0.00080552]
[1767982670750,0.001,3098.9,3098.0,0.00080504]
[1767982671134,0.95431787,3098.9,3098.0,0.00080504]
[1767982671460,1.39783039,3098.9,3098.0,0.00080504]
[1767982672269,0.95431787,3098.9,3098.0,0.00080504]
[1767982672665,0.001,3098.9,3098.0,0.00080504]
[1767982673170,0.00080496,3099.2,3098.0,0.00080504]
[1767982673171,0.00080496,3099.2,3098.0,0.76874497]
[1767982673545,0.00080496,3099.2,3098.1,0.25259714]
[1767982674071,4.18078053,3099.2,3098.1,0.25259714]
[1767982674248,0.95412283,3099.2,3098.1,0.25259714]
[1767982674966,0.95412283,3099.2,3098.0,0.00080504]
[1767982674967,0.95331787,3099.1,3098.0,0.00080504]
[1767982677829,0.95331787,3099.1,3098.3,0.002]
[1767982678232,0.001,3098.8,3098.3,0.002]
[1767982678827,0.95431787,3098.8,3098.3,0.002]
[1767982679057,0.95331787,3099.1,3098.3,0.002]
[1767982679453,0.00080496,3099.2,3098.3,0.002]
[1767982679655,0.95331787,3099.1,3098.3,0.002]
[1767982681436,0.97262382,3099.0,3098.3,0.002]
[1767982681634,0.95331787,3098.5,3098.0,0.00280504]
[1767982681840,0.95331787,3098.3,3098.0,0.00280504]
[1767982682257,0.95331787,3098.3,3097.8,0.00080552]
[1767982682949,0.00080504,3098.4,3097.8,0.00080552]
[1767982687169,1.18647379,3099.0,3097.8,0.00080552]
[1767982687483,0.00080496,3099.2,3098.0,6.45658304]
[1767982687675,0.00080496,3099.2,3098.1,1.07085083]
[1767982688462,0.00080496,3099.2,3098.1,1.84079076]
[1767982688662,0.93247379,3099.5,3098.8,0.00080504]
[1767982689785,0.93247379,3099.4,3098.8,0.00080504]
[1767982689987,0.93247379,3099.4,3098.0,0.00080512]
[1767982689988,0.93247379,3099.3,3098.0,0.00080512]
[1767982690191,0.93247379,3098.7,3098.0,0.00080512]
[1767982690402,0.93247379,3098.5,3098.0,0.00080512]
[1767982690563,0.95177974,3098.4,3098.0,0.00080512]
[1767982690764,0.95177974,3098.4,3098.3,0.002]
[1767982690973,0.95177974,3098.4,3098.0,0.00080512]
[1767982691178,0.95177974,3098.4,3098.0,0.00280512]
[1767982691596,0.93247379,3098.4,3098.0,0.00280512]
[1767982692103,0.41599115,3098.3,3098.0,0.00280512]
[1767982692610,0.93247379,3098.4,3098.0,0.00280512]
[1767982694073,0.93247379,3098.8,3098.0,0.00280512]
[1767982694269,0.001,3098.9,3098.0,0.00280512]
[1767982694699,0.001,3098.9,3098.0,0.77355009]
[1767982695707,0.00080504,3099.2,3098.0,0.77355009]
[1767982695908,0.00080504,3099.2,3098.1,9.68335431]
[1767982696217,0.00080504,3099.2,3098.2,1.29969044]
[1767982697013,0.93327883,3099.2,3098.2,1.29969044]
[1767982698514,0.93327883,3099.2,3098.3,6.45515282]
[1767982698688,0.93327883,3099.2,3098.2,4.52734614]
[1767982698689,0.93247379,3099.1,3098.2,4.27335428]
[1767982698927,0.93247379,3099.1,3098.0,0.00280512]
[1767982699133,0.93247379,3099.1,3098.2,3.22767145]
[1767982699717,0.93247379,3099.1,3098.0,0.00280512]
[1767982699918,0.93247379,3099.1,3098.1,3.22772633]
[1767982700235,0.93247379,3099.1,3098.2,3.22764526]
[1767982700430,0.93247379,3099.0,3098.0,0.00280512]
[1767982702026,0.93247379,3098.9,3098.0,0.00280512]
[1767982702746,0.93247379,3098.8,3098.3,0.002]
[1767982704783,0.93247379,3098.6,3098.3,0.002]
[1767982706072,0.95177974,3098.6,3098.0,0.00280512]
[1767982706238,0.95177974,3098.4,3098.0,0.00280512]
[1767982706440,0.93247379,3098.1,3097.8,0.00080552]
[1767982706678,0.93247379,3098.1,3096.9,6.71202357]
[1767982706855,3.22788896,3098.0,3096.9,6.71202357]
[1767982707049,4.16030564,3098.1,3097.0,0.67128279]
[1767982707248,4.16030564,3098.1,3096.9,6.71202357]
[1767982707249,0.95177974,3098.0,3096.9,3.22898809]
[1767982707867,0.95177974,3097.8,3096.9,3.22903348]
[1767982708469,0.95177974,3097.8,3096.8,3.2299144]
[1767982709444,4.16067535,3097.7,3096.8,0.00080432]
[1767982710069,0.93247379,3097.7,3096.8,0.00080432]
[1767982713770,3.22810095,3097.8,3096.8,0.00080432]
[1767982714010,0.95088721,3097.7,3096.8,0.00080432]
[1767982714509,0.95088721,3097.7,3096.8,6.45908382]
[1767982714802,0.95088721,3097.7,3097.1,0.002]
[1767982716476,0.95088721,3098.0,3097.1,0.002]
[1767982718107,0.95088721,3097.8,3097.1,0.002]
[1767982718522,0.95088721,3097.6,3097.1,0.002]
[1767982718718,0.95088721,3097.5,3097.1,0.002]
[1767982719533,0.97019316,3097.5,3096.8,0.00280432]
[1767982719735,0.95088721,3096.9,3095.8,1e-08]
[1767982719905,0.01930595,3097.0,3095.8,0.00080369]
[1767982719906,0.94969081,3096.2,3095.8,0.00080369]
[1767982720310,0.95088721,3096.5,3095.8,0.00080369]
[1767982720825,3.2296612,3096.3,3095.8,0.00080369]
[1767982721032,0.74293975,3096.3,3095.8,0.00080369]
[1767982722107,0.95088721,3096.4,3095.8,0.00080369]
[1767982722303,0.95088721,3096.7,3095.8,0.00080369]
[1767982722836,4.18016004,3096.7,3095.8,0.00080369]
[1767982723140,0.254,3096.6,3095.8,0.00080369]
[1767982723438,3.22905952,3096.9,3095.8,0.00080369]
[1767982723730,0.67392527,3096.8,3095.8,0.00080369]
[1767982724516,0.95088721,3096.7,3095.8,0.00080369]
[1767982725856,0.41992527,3096.8,3095.8,0.00080369]
[1767982726004,0.00080432,3097.2,3095.8,0.77274506]
[1767982726209,0.97019316,3097.1,3095.8,0.00080369]
[1767982726522,0.97019316,3096.9,3095.8,0.00080369]
[1767982726909,0.95088721,3096.7,3096.1,0.002]
[1767982727108,0.97019316,3096.7,3096.1,0.002]
[1767982727746,0.95088721,3096.7,3096.1,0.002]
[1767982728043,1.37086007,3097.0,3096.1,0.002]
[1767982728213,0.95088721,3097.0,3096.1,0.002]
[1767982729145,0.00080432,3097.2,3096.1,0.002]
[1767982729639,0.00080432,3097.2,3096.1,0.256]
[1767982730243,0.00080432,3097.2,3096.1,1.02794137]
[1767982730413,0.00080432,3097.2,3096.2,0.77847167]
[1767982730611,0.00080432,3097.2,3096.3,0.77194137]
[1767982731248,0.00080432,3097.2,3096.4,9.6886707]
[1767982731650,0.92612295,3097.2,3096.4,6.7131138]
[1767982732447,0.00080432,3097.2,3096.4,6.7131138]
[1767982732614,0.00080432,3097.2,3096.5,0.67131138]
[1767982733156,0.00080432,3097.2,3096.6,6.45869662]
[1767982733519,0.92531863,3097.8,3096.8,0.0008044]
[1767982735650,0.01930595,3097.5,3096.8,0.0008044]
[1767982735848,0.94462458,3097.3,3096.8,0.0008044]
[1767982736022,0.92531863,3097.0,3096.1,0.002]
[1767982736231,0.92531863,3096.8,3096.1,0.002]
[1767982736622,0.92531863,3096.6,3096.1,0.002]
[1767982737763,0.92531863,3097.0,3096.1,0.002]
[1767982738528,0.001,3096.9,3096.1,0.002]
[1767982738929,0.0008044,3097.2,3096.2,0.254]
[1767982739734,0.0008044,3097.2,3096.3,0.254]
[1767982740360,0.92531863,3097.9,3096.4,0.77274577]
[1767982740663,0.00080552,3098.2,3096.8,0.00080448]
[1767982740828,0.00080552,3098.2,3096.9,0.254]
[1767982741329,0.92612415,3098.2,3096.9,0.254]
[1767982741730,0.92612415,3098.2,3097.0,6.45786244]
[1767982741975,1.3415702,3098.2,3097.1,0.67118624]
[1767982742140,0.92612415,3098.2,3097.1,0.67118624]
[1767982743673,0.92612415,3098.2,3097.2,6.45744542]
[1767982744046,0.92612415,3098.2,3097.2,3.48272271]
[1767982744269,0.92612415,3098.2,3097.2,3.22872271]
[1767982744469,0.92612415,3098.2,3097.2,6.71144542]
[1767982744667,0.92612415,3098.2,3097.3,0.73826317]
[1767982744865,0.00080552,3098.2,3097.3,0.73826317]
[1767982745240,0.99943171,3098.2,3097.3,0.73826317]
[1767982745445,0.99943171,3098.2,3097.2,3.22872271]
[1767982746169,0.99943171,3098.2,3097.1,3.22881421]
[1767982746341,0.99862619,3098.1,3096.8,0.00080448]
[1767982746666,0.99862619,3097.9,3096.8,3.22988138]
[1767982746847,0.99862619,3097.9,3097.0,3.22891515]
[1767982747045,0.99862619,3097.9,3097.1,6.45765051]
[1767982747256,0.99943171,3098.2,3097.1,6.45765051]
[1767982747457,0.99943171,3098.2,3097.1,9.94047747]
[1767982747643,0.99943171,3098.2,3097.1,3.22882355]
[1767982747853,0.99862619,3098.0,3097.1,7.16801111]
[1767982748251,0.00080552,3098.2,3097.1,7.16801111]
[1767982748493,0.00080552,3098.2,3097.1,7.42201111]
[1767982748852,1.01793214,3098.1,3096.8,0.00080448]
[1767982749052,0.99862619,3097.8,3096.8,0.00080448]
[1767982749367,0.99862619,3097.3,3096.8,0.00080448]
[1767982750762,0.99862619,3097.2,3096.8,0.00080448]
[1767982755678,0.99862619,3097.5,3096.8,0.00080448]
[1767982755884,0.001,3097.7,3096.8,0.00080448]
[1767982759075,0.001,3097.7,3096.8,6.45908398]
[1767982759288,0.001,3097.7,3096.9,0.6713084]
[1767982759484,0.99962619,3097.7,3096.9,0.6713084]
[1767982759815,0.99962619,3097.7,3096.8,3.22994423]
[1767982760303,0.99962619,3097.7,3096.8,0.00080448]
[1767982760512,0.99862619,3097.6,3096.8,0.00080448]
[1767982760976,0.99862619,3097.4,3096.8,0.00080448]
[1767982761521,0.99862619,3097.3,3096.8,0.00080448]
[1767982761678,0.99862619,3097.1,3096.2,3.22972723]
[1767982762413,0.99862619,3097.1,3096.8,0.002]
[1767982762797,0.42352484,3097.2,3096.8,0.002]
[1767982763001,0.00080448,3097.2,3096.8,0.002]
[1767982764289,0.001,3097.7,3096.8,0.00280456]
[1767982765694,0.001,3097.7,3096.8,0.77555033]
[1767982766318,0.001,3097.7,3096.8,0.00280456]
[1767982766319,0.99962619,3097.7,3096.8,0.00280456]
[1767982767603,0.99862619,3097.6,3096.8,0.00280456]
[1767982767918,0.99862619,3097.4,3096.8,0.00280456]
[1767982771211,0.001,3097.7,3096.8,0.00280456]
[1767982771406,0.001,3097.7,3096.8,1.02955033]
[1767982771610,0.001,3097.7,3097.0,6.45786244]
[1767982772216,0.99862619,3097.5,3096.8,0.00280456]
[1767982772400,0.99862619,3097.3,3096.8,0.00280456]
[1767982773218,0.68984759,3097.2,3096.8,0.00280456]
[1767982774132,0.001,3097.1,3096.8,0.00280456]
[1767982774832,0.16994738,3097.1,3096.8,0.00280456]
[1767982775039,1.61912574,3097.0,3096.0,0.254]
[1767982775240,0.68984759,3096.9,3096.0,0.254]
[1767982776212,0.92927815,3096.8,3096.1,3.23186983]
[1767982776404,0.92727816,3096.8,3096.1,3.83440679]
[1767982776603,0.92727816,3096.8,3096.1,7.06427662]
[1767982777850,0.001,3097.1,3096.1,7.06427662]
[1767982778035,1.6206378,3097.1,3096.1,7.06427662]
[1767982778234,0.69035965,3097.0,3096.1,10.29414645]